[Event "21st RLP-Seniors Open 2024"]
[Site "Altenkirchen Ww"]
[Date "2024.09.04"]
[Round "2.7"]
[White "Krueger, Erich"]
[Black "Buchaeckert, Juergen"]
[Result "1/2-1/2"]
[Annotator "TA"]
[ECO "D94"]
[WhiteElo "2085"]
[BlackElo "1910"]
[PlyCount "36"]
[EventDate "2024.09.02"]
[EventType "swiss"]
[EventCountry "GER"]
[SourceTitle "playchess.com"]
[Source "ChessBase"]
[SourceQuality "1"]
[TimeControl "40/5400+30:1800+30"]

{[%evp 20,36,0,-9,-4,-41,-39,-47,-39,-44,-57,-63,-66,-66,-43,-44,-50,-53,-41]} 1. d4 {[%emt 0:00:02]} Nf6 {[%emt 0:00:17]} 2. c4 {[%emt 0:00:06]} g6 {[%emt 0:00:11]} 3. Nc3 {[%emt 0:00:06]} d5 {[%emt 0:00:37]} 4. Nf3 {[%emt 0:00:12]} Bg7 {[%emt 0:00:07]} 5. e3 {[%emt 0:00:19]} O-O {[%emt 1:31:48]} 6. cxd5 {[%emt 1:32:45]} Nxd5 {[%emt 0:00:00]} 7. Bc4 {[%emt 0:00:00]} Nb6 {[%emt 0:00:00]} 8. Bb3 {[%emt 0:00:00]} c5 {[%emt 0:00:00]} 9. O-O {[%emt 0:00:00]} cxd4 {[%emt 0:00:00]} 10. exd4 {[%emt 0:00:00]} Nc6 {[%emt 0:00:00]} 11. Be3 {[%emt 0:00:00]} Na5 {[%emt 0:00:00]} 12. Ne5 {[%emt 0:00:00]} Nxb3 {[%emt 0:00:00] Black is slightly better.} 13. Qxb3 {[%emt 0:00:00]} Be6 {[%emt 0:00:00]} 14. Qc2 {[%emt 0:00:00]} Rc8 {[%emt 0:00:00]} 15. Qe4 {[%emt 0:00:00]} Nd5 {[%emt 0:00:00]} 16. Nxd5 {[%emt 0:00:00]} Qxd5 {[%emt 0:00:00]} 17. Qxd5 {[%emt 0:00:00]} Bxd5 {[%emt 0:00:00]} 18. Rfc1 {[%emt 0:00:00]} h5 {[%emt 0:00:00] Weighted Error Value: White=0.09 (flawless) /Black=0.00 (flawless) .  Inaccurate:     	White=1     	---        OK:         	White=1     	Black=4} 1/2-1/2

[Event "21st RLP-Seniors Open 2024"]
[Site "Altenkirchen Ww"]
[Date "2024.09.04"]
[Round "2.8"]
[White "Haertner, Helmut"]
[Black "Mueller, Erich"]
[Result "0-1"]
[Annotator "TA"]
[ECO "A41"]
[WhiteElo "1924"]
[BlackElo "2081"]
[PlyCount "70"]
[EventDate "2024.09.02"]
[EventType "swiss"]
[EventCountry "GER"]
[SourceTitle "playchess.com"]
[Source "ChessBase"]
[SourceQuality "1"]
[TimeControl "40/5400+30:1800+30"]

{[%evp 9,70,-20,-6,-16,-16,-31,-6,-26,-14,-16,-8,-21,0,0,0,-12,-11,-14,1,-4,2,-39,-33,-74,-80,-97,-84,-88,-89,-117,47,-122,-113,-111,-100,-102,-110,-114,-127,-150,-150,-155,-150,-179,-183,-187,-168,-181,-116,-145,-103,-122,-108,-312,-327,-311,-291,-362,-227,-568,-553,-829,-801]} 1. d4 {[%emt 0:00:04]} d6 {[%emt 0:00:04]} 2. c4 {[%emt 0:00:27]} e5 {[%emt 0:00:33]} 3. d5 {[%emt 0:00:36]} f5 {[%emt 0:00:12]} 4. Nc3 {[%emt 0:00:26]} Nf6 {[%emt 0:00:09]} 5. g3 {[%emt 0:00:26]} Be7 {[%emt 0:00:18]} 6. Bg2 {[%emt 0:00:10]} O-O {[%emt 0:00:14]} 7. Nh3 {[%emt 0:00:19]} a5 {[%emt 0:02:31]} 8. O-O {[%emt 0:00:48] The position is equal.} Nbd7 {[%emt 0:00:57]} 9. f3 {[%emt 0:00:21]} Nc5 {[%emt 0:01:50]} 10. Nf2 {[%emt 0:00:14]} Qe8 {[%emt 0:01:45]} 11. Be3 {[%emt 0:03:34]} Na6 {[%emt 0:07:15]} 12. a3 {[%emt 0:06:23][%cal Ob2b4]} Bd7 {[%emt 0:02:44]} 13. b3 {[%emt 0:02:08]} Qh5 {[%emt 0:01:03]} 14. Qd2 {[%emt 0:01:23]} b6 {[%emt 0:01:27]} 15. Rfb1 {[%emt 0:01:28]} Nc5 {[%emt 0:02:41][%cal Of5f4]} 16. Qc2 {[%emt 0:01:17] [#]} f4 $1 {[%emt 0:12:35] Black is more active.} 17. Bxc5 {[%emt 0:02:53]} (17. g4 Qh4) 17... fxg3 {[%emt 0:01:32]} 18. hxg3 {[%emt 0:00:17]} bxc5 {[%emt 0:00:21]} 19. Re1 {[%emt 0:08:47]} Qe8 $2 {[%emt 0:04:23]} (19... Rab8 $17 20. Ra2 Bf5) 20. Nfe4 $2 {[%emt 0:01:19]} (20. Bh3 $14 {keeps the upper hand.}) 20... Nxe4 $17 {[%emt 0:00:17]} 21. Nxe4 {[%emt 0:00:08]} Qg6 {[%emt 0:00:38]} 22. Rf1 {[%emt 0:02:04]} Bf5 {[%emt 0:00:30]} 23. Qd3 {[%emt 0:00:14]} Bg5 {[%emt 0:01:30]} 24. Rfd1 {[%emt 0:08:48]} Qh6 {[%emt 0:06:06]} 25. Kf2 {[%emt 0:01:20] Repels Be3+} Rab8 {[%emt 0:00:31]} 26. Rab1 {[%emt 0:01:44] [#]} Qg6 $1 {[%emt 0:02:34]} 27. Kg1 {[%emt 0:01:29] [#]} h5 $1 {[%emt 0:01:35]} 28. Rf1 {[%emt 0:03:13]} Bh6 {[%emt 0:01:45]} ({Black should try} 28... Qh6 $19 {...h4 would now be deadly.} 29. Kh2 h4) 29. Kh1 {[%emt 0:06:12]} h4 {[%emt 0:01:14]} 30. g4 {[%emt 0:00:10]} Bxe4 {[%emt 0:01:42]} 31. Qxe4 {[%emt 0:03:33] This costs White the game.} (31. fxe4 $17 {was the only defense.} Qg5 (31... Qxg4 32. Bh3 $17) 32. Bh3) 31... Qxe4 $19 {[%emt 0:01:37]} 32. fxe4 {[%emt 0:00:07]} Rxf1+ {[%emt 0:00:08]} 33. Bxf1 {[%emt 0:00:08]} Bd2 {[%emt 0:00:23] aiming for ...a4.} 34. Bg2 $2 {[%emt 0:00:24]} (34. a4 {is a better chance.}) 34... a4 {[%emt 0:00:24]} 35. Rd1 {[%emt 0:01:18] [#]} axb3 $1 {[%emt 0:00:11] Weighted Error Value: White=0.49/Black=0.20 (precise) .  Loses game:     	White=1     	---        Mistake:       	White=2     	Black=2      Inaccurate:     	White=4     	Black=1      OK:         	White=5     	Black=14     Best:        	White=1     	Black=2      Strong:       	---       	Black=1} 0-1

[Event "21st RLP-Seniors Open 2024"]
[Site "Altenkirchen Ww"]
[Date "2024.09.04"]
[Round "2.9"]
[White "Meyer, Dieter"]
[Black "Cichy, Michael"]
[Result "1/2-1/2"]
[Annotator "NA RC"]
[ECO "A34"]
[WhiteElo "1917"]
[BlackElo "2058"]
[PlyCount "70"]
[EventDate "2024.09.02"]
[EventType "swiss"]
[EventCountry "GER"]
[SourceTitle "playchess.com"]
[Source "ChessBase"]
[SourceQuality "1"]
[TimeControl "40/5400+30:1800+30"]

1. c4 {[%emt 0:00:21]} Nf6 {[%emt 0:00:20]} 2. g3 {[%emt 0:00:27]} e6 {[%emt 0:00:09]} 3. Bg2 {[%emt 0:00:20]} c5 {[%emt 0:00:48]} 4. Nc3 {[%emt 0:01:42]} d5 {[%emt 0:01:15]} 5. d3 {[%emt 0:03:52]} d4 {[%emt 0:00:58]} 6. Ne4 {[%emt 0:00:15] A34: Symmetrical English: 2 Nc3, lines with ...d5.} Nxe4 {[%emt 0:00:57]} 7. Bxe4 {[%emt 0:00:20]} Bd6 {[%emt 0:01:02]} 8. e3 {[%emt 0:04:26]} Nc6 {[%emt 0:04:34]} 9. a3 {[%emt 0:05:06]} Bd7 {[%emt 0:06:16]} 10. Bd2 {[%emt 0:03:18]} O-O {[%emt 0:02:13]} 11. exd4 {[%emt 0:04:26]} Nxd4 {[%emt 0:07:59]} 12. b4 {[%emt 0:00:55]} (12. Ne2 $1 $11 {remains equal.}) 12... Qc7 {[%emt 0:08:11]} (12... Qe8 $17 13. b5 a6) 13. Nh3 {[%emt 0:08:58]} f5 {[%emt 0:07:38]} 14. Bg2 {[%emt 0:01:13]} Rae8 {[%emt 0:03:28]} 15. O-O {[%emt 0:01:51]} e5 {[%emt 0:13:23]} 16. Rb1 {[%emt 0:02:37] [#]} (16. Bc3 $11) 16... Bc6 {[%emt 0:01:45]} (16... f4 $1 $17 {[%cal Rf4f3]} 17. Bd5+ Be6 18. Bxe6+ Rxe6 (18... Nxe6 19. Bc3 $15)) 17. f3 {[%emt 0:03:47]} ({White should play} 17. Be3 $15) 17... b6 {[%emt 0:05:17]} 18. Bc3 {[%emt 0:07:33]} h6 {[%emt 0:05:52]} 19. Rb2 {[%emt 0:04:31]} Re7 {[%emt 0:03:05]} 20. Bxd4 {[%emt 0:07:51]} exd4 {[%emt 0:01:56]} 21. b5 {[%emt 0:00:28]} Bb7 $15 {[%emt 0:01:37]} 22. Re1 {[%emt 0:01:09]} Rfe8 {[%emt 0:10:14]} 23. Rbe2 {[%emt 0:00:17]} g5 {[%emt 0:01:30]} 24. Qd2 {[%emt 0:04:52]} Rxe2 {[%emt 0:03:55]} 25. Rxe2 {[%emt 0:01:11]} Rxe2 {[%emt 0:03:07]} 26. Qxe2 {[%emt 0:00:06]} Qe7 {[%emt 0:00:10]} 27. Qxe7 {[%emt 0:00:39]} Bxe7 {[%emt 0:00:01]} 28. f4 {[%emt 0:01:26]} Bc8 {[%emt 0:00:24]} 29. Bd5+ {[%emt 0:01:23]} Kg7 {[%emt 0:00:01]} 30. Kg2 {[%emt 0:00:22]} Kf6 {[%emt 0:00:54]} 31. Ng1 {[%emt 0:02:16]} Bd6 {[%emt 0:00:32]} 32. Ne2 {[%emt 0:00:34]} Bd7 {[%emt 0:00:51]} 33. a4 {[%emt 0:03:37]} Be8 {[%emt 0:00:40]} 34. Bf3 {[%emt 0:00:20]} Bf7 {[%emt 0:01:53]} 35. Kf2 {[%emt 0:01:00]} Be8 {[%emt 0:02:02]} 1/2-1/2